bitfinex-derivatives/quotes_ETHF0:USTF0_20250927
["timestamp","ask_amount","ask_price","bid_price","bid_amount"]
[1758960869586,3.61322259,3990.7,3990.6,1.6369]
[1758960871190,3.61322259,3990.7,3990.6,2.08769]
[1758960872089,0.00322259,3990.7,3990.6,7.08769]
[1758960874782,3.61,3992.0,3991.9,0.9471]
[1758960874989,3.72832566,3992.0,3991.9,3.01439248]
[1758960875691,3.73008211,3992.0,3991.9,3.01690286]
[1758960875887,3.32788211,3992.0,3991.9,3.01690286]
[1758960876991,3.20955645,3992.0,3991.9,3.01690286]
[1758960878997,0.00175645,3992.0,3991.9,3.01690286]
[1758960885395,0.00175645,3992.0,3991.9,2.74790286]
[1758960885698,0.00175645,3992.0,3991.9,42.09490286]
[1758960886299,0.00175645,3992.0,3991.9,42.09390286]
[1758960889799,0.00175645,3992.0,3991.9,42.54454286]
[1758960891102,0.00175645,3992.0,3991.9,45.75234286]
[1758960892606,0.00175645,3992.0,3991.9,6.40634286]
[1758960892793,0.00175645,3992.0,3991.9,45.74834286]
[1758960893502,3.2078,3992.8,3992.7,1.83245]
[1758960893800,3.32616361,3992.8,3992.7,3.52554248]
[1758960894601,3.32862668,3992.8,3992.7,3.52554248]
[1758960894798,0.12082668,3992.8,3992.7,3.52554248]
[1758960895998,6.43782668,3992.8,3992.7,0.9951]
[1758960896197,0.7619,3992.5,3992.4,0.45058]
[1758960896390,1.43536361,3992.5,3992.4,0.71858]
[1758960896591,1.43536361,3992.5,3992.4,1.32368]
[1758960896787,1.43536361,3992.5,3992.4,1.71368]
[1758960896997,1.43536361,3992.5,3992.4,1.44568]
[1758960897194,1.43536361,3992.5,3992.4,1.71368]
[1758960897899,1.43536361,3992.5,3992.4,1.44568]
[1758960898199,1.43536361,3992.5,3992.4,1.71368]
[1758960899198,0.45061,3992.2,3992.1,0.6051]
[1758960899407,1.5201,3992.0,3991.9,0.00251038]
[1758960899593,1.5201,3992.0,3991.9,0.27051038]
[1758960899594,2.22612971,3992.0,3991.9,0.27051038]
[1758960899993,6.83922971,3992.0,3991.3,1.05581]
[1758960900189,1.317,3991.4,3991.2,0.04584918]
[1758960900494,1.317,3991.0,3990.9,1.42509248]
[1758960900695,1.64776361,3991.0,3990.6,1.14247889]
[1758960900898,1.317,3990.7,3990.6,1.59325889]
[1758960901200,0.11836361,3990.7,3990.6,3.24546913]
[1758960901596,3.2078,3991.2,3991.0,1.07944]
[1758960901796,3.5947,3991.2,3991.1,2.79237889]
[1758960902000,4.30116299,3991.2,3991.1,2.79237889]
[1758960902403,5.23126299,3991.2,3991.1,2.40557889]
[1758960902598,5.23126299,3991.2,3991.1,2.79237889]
[1758960902902,5.23126299,3991.2,3991.1,1.14247889]
[1758960903099,5.23126299,3991.2,3990.7,1.59324889]
[1758960903100,1.317,3990.8,3990.7,1.59324889]
[1758960903300,1.43551019,3990.8,3990.7,1.86124889]
[1758960903502,1.43551019,3990.8,3990.7,2.46634889]
[1758960903903,1.43551019,3990.8,3990.7,2.40557889]
[1758960904304,1.43551019,3990.8,3990.7,2.13757889]
[1758960905104,4.64331019,3990.8,3990.7,2.13757889]
[1758960905300,0.45078,3990.7,3990.6,0.00231024]
[1758960905502,1.88629019,3990.7,3990.6,0.27031024]
[1758960905706,1.43551019,3990.7,3990.6,0.27031024]
[1758960906804,6.43551019,3990.7,3990.6,0.27031024]
[1758960907700,6.43551019,3990.7,3990.6,2.33358913]
[1758960907701,1.43551019,3990.7,3990.6,2.33358913]
[1758960907900,1.43551019,3990.7,3990.6,0.81951024]
[1758960908102,1.43551019,3990.7,3990.6,0.27031024]
[1758960908807,0.88041019,3990.7,3990.6,2.71238913]
[1758960908999,1.46301019,3990.7,3990.6,2.71238913]
[1758960909614,0.88041019,3990.7,3990.6,2.71238913]
[1758960909802,3.2078,3991.2,3991.1,1.2996]
[1758960910106,3.6946465,3991.2,3991.1,2.71007889]
[1758960910300,4.0657465,3991.2,3991.1,2.71007889]
[1758960910502,4.6483465,3991.2,3991.1,2.33127889]
[1758960911010,4.6483465,3991.2,3991.1,1.1888]
[1758960911212,4.6483465,3991.2,3991.1,0.268]
[1758960912514,4.6483465,3991.2,3991.1,1.1888]
[1758960912925,4.6483465,3991.2,3991.1,2.71007889]
[1758960913419,4.6483465,3991.2,3991.1,0.268]
[1758960913808,4.6483465,3991.2,3991.1,1.1888]
[1758960915219,3.6946465,3991.2,3991.1,1.5676]
[1758960915419,3.69460956,3991.2,3991.1,1.5676]
[1758960915724,3.5764,3991.2,3991.1,1.5676]
[1758960915921,3.2078,3991.2,3991.1,1.5676]
[1758960917524,1.27237889,3992.5,3991.6,1.75027]
[1758960917525,3.2078,3991.7,3991.6,1.75027]
[1758960917716,3.2078,3991.7,3991.6,3.16074889]
[1758960919423,0.7397,3992.0,3991.9,0.7504]
[1758960919626,0.7397,3992.0,3991.9,2.71007889]
[1758960921223,4.24101,3992.2,3991.9,2.71007889]
[1758960921224,3.5764,3992.2,3992.1,0.3716]
[1758960921429,3.69472588,3992.2,3992.1,1.5666]
[1758960921831,3.2078,3992.2,3992.1,1.5666]
[1758960923227,3.2078,3992.2,3992.1,7.70907889]
[1758960923526,3.2078,3992.2,3992.1,6.5666]
[1758960924024,3.5982,3992.7,3992.6,0.3711]
[1758960924226,3.71657645,3992.7,3992.6,3.15993889]
[1758960925829,4.70097645,3992.7,3992.6,2.34277889]
[1758960926531,3.71657645,3992.7,3992.6,2.70937889]
[1758960926730,0.00246307,3992.8,3992.7,1.75045]
[1758960932039,3.7996,3993.9,3993.5,0.7839]
[1758960932340,4.5826,3993.9,3993.8,1.2999]
[1758960932538,3.2078,3993.9,3993.8,1.5669]
[1758960933037,3.2078,3993.9,3993.8,1.56985921]
[1758960933038,3.20983135,3993.9,3993.8,1.56985921]
[1758960936239,0.00203135,3993.9,3993.8,1.56985921]
[1758960937037,6.37683135,3993.9,3993.8,0.00295921]
[1758960937238,6.37683135,3993.9,3993.8,0.26995921]
[1758960938132,1.37683135,3993.9,3993.8,1.20325921]
[1758960938329,0.78503135,3993.9,3993.8,1.56985921]
[1758960938534,1.37683135,3993.9,3993.8,2.7123381]
[1758960938734,1.37683135,3993.9,3993.8,1.56985921]
[1758960939036,1.37683135,3993.9,3993.8,2.7123381]
[1758960939843,0.78503135,3993.9,3993.8,2.7123381]
[1758960940539,0.78503135,3993.9,3993.8,1.56985921]
[1758960940944,0.00203135,3993.9,3993.8,1.56985921]
[1758960941339,0.39243135,3993.9,3993.8,1.56985921]
[1758960941535,1.37683135,3993.9,3993.8,0.00295921]
[1758960941740,1.37683135,3993.9,3993.8,0.26995921]
[1758960942041,1.37683135,3993.9,3993.8,0.26895921]
[1758960942345,1.49499325,3993.9,3993.8,0.26895921]
[1758960942645,1.49499325,3993.9,3993.8,1.4114381]
[1758960942941,1.49499325,3993.9,3993.8,2.3447381]
[1758960943144,1.37683135,3993.9,3993.8,2.7113381]
[1758960944045,0.78503135,3993.9,3993.8,2.7113381]
[1758960945539,1.37683135,3993.9,3993.8,2.7113381]
[1758960947046,1.37683135,3993.9,3993.8,2.4453381]
[1758960947249,1.49462889,3993.9,3993.8,2.7113381]
[1758960947946,0.90282889,3993.9,3993.8,2.7113381]
[1758960948153,0.51022889,3993.9,3993.8,2.7113381]
[1758960948747,0.11982889,3993.9,3993.8,2.7113381]
[1758960949147,0.11982889,3993.9,3993.8,3.1617681]
[1758960950347,0.51022889,3993.9,3993.8,2.01928921]
[1758960950554,0.51022889,3993.9,3993.8,3.1617681]
[1758960953848,0.11982889,3993.9,3993.8,3.1617681]
[1758960954353,0.11982889,3993.9,3993.8,2.01928921]
[1758960960155,0.11982889,3993.9,3993.8,41.07428921]
[1758960961652,0.11982889,3993.9,3993.8,1.75328921]
[1758960961858,2.45070542,3993.9,3993.8,0.93625921]
[1758960962061,2.45070542,3993.9,3993.8,0.00295921]
[1758960962257,0.7548,3993.1,3992.8,0.5737]
[1758960962454,0.7548,3993.1,3993.0,0.9692]
[1758960962455,1.2909,3993.1,3993.0,0.9692]
[1758960962650,1.99880005,3993.1,3993.0,0.9692]
[1758960962856,1.46270005,3993.1,3993.0,1.5786]
[1758960963357,1.46270005,3993.1,3993.0,1.58178732]
[1758960963554,1.99880005,3993.1,3993.0,1.58178732]
[1758960963755,1.99880005,3993.1,3993.0,1.35358732]
[1758960963956,1.99880005,3993.1,3993.0,0.00318732]
[1758960964154,1.99880005,3993.1,3993.0,0.26918732]
[1758960964660,1.99880005,3993.1,3993.0,1.23838732]
[1758960965256,1.99880005,3993.1,3993.0,0.84288732]
[1758960965459,6.99880005,3993.1,3993.0,0.00318732]
[1758960965660,6.99880005,3993.1,3993.0,0.26918732]
[1758960967261,10.20660005,3993.1,3993.0,0.00318732]
[1758960967451,0.7486,3992.4,3992.3,5.56023818]
[1758960967657,0.86695005,3992.4,3992.3,6.19493818]
[1758960968260,0.86695005,3992.4,3992.3,6.37953818]
[1758960968461,0.86695005,3992.4,3992.3,6.64777887]
[1758960969665,0.86695005,3992.4,3992.3,6.19717887]
[1758960969966,0.86695005,3992.4,3992.3,2.72337887]
[1758960970169,1.42435005,3992.4,3992.3,2.72337887]
[1758960970362,1.42435005,3992.4,3992.3,2.98837887]
[1758960970560,0.86695005,3992.4,3992.3,2.98837887]
[1758960971054,1.42435005,3992.4,3992.3,0.00224069]
[1758960971262,6.42435005,3992.4,3992.3,0.00224069]
[1758960971561,6.42435005,3992.4,3992.3,0.26724069]
[1758960971966,7.01210946,3992.4,3992.3,0.26724069]
[1758960972161,6.42435005,3992.4,3992.3,0.26724069]
[1758960972362,6.42435005,3992.4,3991.6,0.45067]
[1758960972363,0.45068,3991.6,3991.5,2.54683818]
[1758960972566,1.75668,3991.6,3991.5,2.58363818]
[1758960972754,1.75668,3991.6,3991.5,1.68723818]
[1758960972954,1.87455986,3991.6,3991.5,1.68723818]
[1758960973468,1.87455986,3991.6,3991.5,1.68939235]
[1758960973762,1.87455986,3991.6,3991.5,2.22929235]
[1758960973959,1.87455986,3991.6,3991.5,2.58579235]
[1758960974457,1.75668,3991.6,3991.5,2.58579235]
[1758960975970,1.75668,3991.6,3991.5,1.16355417]
[1758960976168,1.306,3991.6,3991.5,1.53225417]
[1758960976367,0.7486,3991.6,3991.5,1.75315417]
[1758960976568,0.7486,3991.6,3991.5,3.17539235]
[1758960977665,1.306,3991.6,3991.5,3.17539235]
[1758960977867,1.306,3991.6,3991.5,1.75315417]
[1758960978969,0.7486,3991.6,3991.5,1.75315417]
[1758960979168,0.7486,3991.6,3991.5,1.48815417]
[1758960979369,0.7486,3991.6,3991.5,1.75315417]
[1758960979565,0.7486,3991.6,3991.5,1.48815417]
[1758960979868,0.7486,3991.6,3991.5,1.75315417]
[1758960980170,0.3769,3991.6,3991.5,1.75315417]
[1758960981973,0.7486,3991.6,3991.5,3.17539235]
[1758960982268,0.7486,3991.6,3991.5,2.91039235]
[1758960982474,1.75668,3991.6,3991.5,1.16355417]
[1758960983771,0.45068,3991.6,3991.5,1.74455417]
[1758960983974,0.82828,3991.6,3991.5,1.74455417]
[1758960984167,1.74168,3991.6,3991.5,1.74455417]
[1758960984965,1.74168,3991.6,3989.8,3.2078]
[1758960984966,0.2144,3991.5,3989.8,3.2078]
[1758960985165,0.2144,3991.5,3990.5,0.7663]
[1758960985166,1.19319,3990.6,3990.5,0.7663]
[1758960985375,1.74179,3990.6,3990.5,0.8883]
[1758960985771,1.74179,3990.6,3990.5,0.5068]
[1758960985974,1.7443821,3990.6,3990.5,0.50907382]
[1758960987073,1.7443821,3990.6,3990.5,1.05447382]
[1758960988371,1.7443821,3990.6,3990.5,0.50907382]
[1758960988675,1.7443821,3990.6,3990.5,1.19747382]
[1758960989671,1.7443821,3990.6,3990.5,0.65207382]
[1758960990176,1.7443821,3990.6,3990.5,0.26727382]
[1758960990971,1.8621303,3990.6,3990.5,0.93247382]
[1758960991171,0.9487303,3990.6,3990.5,1.52627382]
[1758960991376,0.8309821,3990.6,3990.5,3.213512]
[1758960991573,1.7443821,3990.6,3990.5,3.213512]
[1758960991770,1.7443821,3990.6,3990.5,1.79127382]
[1758960992172,1.86218516,3990.6,3990.5,1.79127382]
[1758960993479,1.31358516,3990.6,3990.5,1.79127382]
[1758960994475,0.12039516,3990.6,3990.5,1.79127382]
[1758960994874,0.49799516,3990.6,3990.5,1.79127382]
[1758960995179,0.12039516,3990.6,3990.5,1.79127382]
[1758960996182,0.12039516,3990.6,3990.5,2.24207382]
[1758960998986,0.12039516,3990.6,3990.5,3.664312]
[1758961001077,0.12039516,3990.6,3990.5,2.24207382]
[1758961005286,0.12039516,3990.6,3990.5,7.24207382]
[1758961007584,0.12039516,3990.6,3990.5,8.664312]
[1758961007783,0.12039516,3990.6,3990.5,8.399312]
[1758961008187,0.12039516,3990.6,3990.5,47.747312]
[1758961009586,1.04659516,3990.6,3990.5,1.52627382]
[1758961009784,1.04659516,3990.6,3990.5,2.24107382]
[1758961011288,0.49799516,3990.6,3990.5,2.24107382]
[1758961011586,0.12039516,3990.6,3990.5,2.24107382]
[1758961013791,0.48639516,3990.6,3990.5,2.24107382]
[1758961014597,0.48639516,3990.6,3990.5,0.00227382]
[1758961014598,1.35539516,3990.6,3990.5,0.00227382]
[1758961014802,1.9424606,3990.6,3990.5,0.26627382]
[1758961016195,1.35539516,3990.6,3990.5,0.26627382]
[1758961016595,1.35539516,3990.6,3990.5,1.06527382]
[1758961016797,1.35539516,3990.6,3990.5,1.58717382]
[1758961016986,1.35539516,3990.6,3990.5,2.14717382]
[1758961017993,1.35539516,3990.6,3990.5,1.06527382]
[1758961018188,1.35539516,3990.6,3990.5,0.61447382]
[1758961018395,1.80618516,3990.6,3990.5,0.00227382]
[1758961018600,8.81531799,3990.6,3990.5,0.00227382]
[1758961018796,7.39307981,3990.6,3990.5,0.26627382]
[1758961019100,8.81531799,3990.6,3990.5,0.26627382]
[1758961019286,8.81531799,3990.6,3990.5,0.19448357]
[1758961019496,8.81531799,3990.6,3989.8,3.2078]
[1758961019497,1.235,3989.9,3989.8,3.2078]
[1758961019697,1.35280306,3989.9,3989.8,3.4718]
[1758961020397,1.35280306,3989.9,3989.8,3.47456533]
[1758961022307,1.35280306,3989.9,3989.8,3.82276533]
[1758961022802,1.93908602,3989.9,3989.8,1.13686533]
[1758961023201,1.93967309,3989.9,3989.8,1.13686533]
[1758961023401,1.93967309,3989.9,3989.8,1.49016533]
[1758961023708,1.93967309,3989.9,3989.8,0.26676533]
[1758961024509,6.93915348,3989.9,3989.8,0.26676533]
[1758961024806,8.08269488,3989.9,3989.8,0.26676533]
[1758961025207,6.93915348,3989.9,3989.8,0.26676533]
[1758961025509,3.08269488,3989.9,3989.8,0.26676533]
[1758961025905,1.35339013,3989.9,3989.8,1.49016533]
[1758961026203,0.48439013,3989.9,3989.8,1.49016533]
[1758961027000,1.9386646,3989.9,3989.8,0.26676533]
[1758961027209,1.5883646,3989.9,3989.8,1.49016533]
[1758961027405,0.48439013,3989.9,3989.8,1.49016533]
[1758961028097,0.99939013,3989.9,3989.8,1.49016533]
[1758961028299,1.36559013,3989.9,3989.8,1.49016533]
[1758961030112,0.11839013,3989.9,3989.8,1.49016533]
[1758961030403,3.2078,3990.1,3990.0,1.501]
[1758961030612,3.32595933,3990.1,3990.0,2.9085414]
[1758961032510,3.2078,3990.1,3990.0,2.9085414]
[1758961035711,0.515,3990.4,3990.3,0.3481]
[1758961035907,1.00837724,3990.4,3990.3,2.6828414]
[1758961036308,1.00885214,3990.4,3990.3,2.6828414]
[1758961036914,1.37505214,3990.4,3990.3,2.6828414]
[1758961037415,1.37505214,3990.4,3990.3,3.1336614]
[1758961037612,0.11865214,3990.4,3990.3,3.1336614]
[1758961037817,0.0025921,3990.6,3990.5,1.3992]
[1758961038115,0.0025921,3990.6,3990.5,2.2158]
[1758961038311,0.49647741,3990.6,3990.5,2.2158]
[1758961039109,0.12127741,3990.6,3990.5,2.2158]
[1758961041618,0.49647741,3990.6,3990.5,2.2158]
[1758961042015,1.01147741,3990.6,3990.5,2.2158]
[1758961042819,0.49647741,3990.6,3990.5,2.2158]
[1758961043020,0.12127741,3990.6,3990.5,2.2158]
[1758961044721,1.01137741,3990.6,3990.5,3.3593414]
[1758961045218,0.49197741,3990.6,3990.5,3.3593414]
[1758961046221,0.12127741,3990.6,3990.5,3.3593414]
[1758961049716,0.12126692,3990.6,3990.5,3.3593414]
[1758961050221,1.33673,3990.3,3990.2,0.3485]
[1758961050417,1.82608791,3990.3,3990.2,0.6115]
[1758961050725,1.82608791,3990.3,3990.2,1.159]
[1758961051422,0.11865791,3990.3,3990.2,1.98263]
[1758961053028,1.37525791,3990.3,3990.2,3.1261714]
[1758961054130,0.11865791,3990.3,3990.2,3.1261714]
[1758961054426,0.0025921,3990.6,3990.5,1.9308]
[1758961054633,0.0025921,3990.6,3990.5,3.3373414]
[1758961055026,0.12130794,3990.6,3990.5,3.3373414]
[1758961065432,3.7272,3991.4,3991.3,0.79921]
[1758961065639,4.16540259,3991.4,3991.3,3.1260514]
[1758961065842,4.68480259,3991.4,3991.3,3.1260514]
[1758961066134,5.05130259,3991.4,3991.3,3.1260514]
[1758961066330,5.05130259,3991.4,3991.3,2.6753414]
[1758961066536,5.05418731,3991.4,3991.3,3.1260514]
[1758961067137,4.4644,3991.9,3991.8,1.2688]
[1758961067432,4.4644,3991.9,3991.8,2.6753414]
[1758961067638,3.2078,3991.9,3991.8,2.6753414]
[1758961068129,3.21078914,3991.9,3991.8,2.6753414]
[1758961070039,3.58148914,3991.9,3991.8,2.6753414]
[1758961072434,0.37368914,3991.9,3991.8,2.6753414]
[1758961073843,0.00298914,3991.9,3991.8,2.6753414]
[1758961074939,3.2078,3992.4,3992.3,1.1487]
[1758961075138,3.12540656,3992.4,3992.3,4.2300828]
[1758961075933,3.1282938,3992.4,3992.3,4.2300828]
[1758961077438,0.00288724,3992.4,3992.3,4.2300828]
[1758961079137,1.21148724,3992.4,3992.0,3.86172]
[1758961079332,1.21148724,3992.4,3991.2,1.31638904]
[1758961079333,0.8975,3992.0,3991.9,1.1435414]
[1758961079532,0.8975,3992.0,3991.8,1.1435414]
[1758961079533,0.5145,3991.9,3991.8,1.1435414]
[1758961079841,0.5145,3991.9,3991.5,3.9513]
[1758961079842,1.14474,3991.9,3991.5,4.3513414]
[1758961080031,4.86704,3991.9,3991.8,0.262]
[1758961080243,0.65409,3991.5,3991.2,1.6758414]
[1758961080433,0.5646,3991.0,3990.9,1.1435414]
[1758961080634,1.412,3991.0,3990.9,1.4055414]
[1758961080845,1.412,3991.0,3990.9,2.6359414]
[1758961080846,1.2086,3991.0,3990.9,2.6359414]
[1758961081142,0.6941,3991.0,3990.9,2.6359414]
[1758961081644,1.2086,3991.0,3990.9,2.6359414]
[1758961081841,0.5145,3991.3,3991.0,0.45074]
[1758961082039,0.3612,3991.4,3991.2,1.1435414]
[1758961082239,0.3612,3991.4,3991.3,1.4924]
[1758961082644,0.8757,3991.4,3991.3,1.4924]
[1758961083144,0.8757,3991.7,3991.6,1.2304]
[1758961083342,1.32040296,3991.7,3991.6,2.6359414]
[1758961083735,1.32040296,3991.7,3991.6,2.1036414]
[1758961084646,1.32040296,3991.7,3991.6,0.6257]
[1758961085252,1.32040296,3991.7,3991.6,0.262]
[1758961086347,1.65933,3991.2,3990.9,1.42317822]
[1758961086550,0.6941,3990.8,3990.7,1.2304]
[1758961086947,0.6941,3990.8,3990.7,1.4924]
[1758961087242,1.2086,3990.8,3990.7,1.4924]
[1758961087443,1.4326,3990.5,3990.4,0.3575]
[1758961087640,1.4326,3990.5,3990.4,0.6195]
[1758961087853,1.4326,3990.5,3990.4,1.1218]
[1758961088052,1.2274,3990.5,3990.4,1.4629]
[1758961088948,1.4326,3990.5,3990.4,0.262]
[1758961089352,1.4326,3990.5,3990.4,0.6195]
[1758961089746,1.2274,3990.5,3990.4,1.4629]
[1758961089949,0.3502,3990.9,3990.8,1.2009]
[1758961090146,0.4620172,3990.9,3990.8,1.4629]
[1758961090348,1.2274,3991.2,3991.1,1.2009]
[1758961090549,1.33921849,3991.2,3991.1,1.4629]
[1758961092048,3.2078,3991.4,3991.3,1.2009]
[1758961092248,3.2078,3991.4,3991.3,2.88607822]
[1758961092942,0.5268,3991.8,3991.3,2.88607822]
[1758961092943,4.0848,3991.8,3991.7,0.6986]
[1758961093144,4.54706225,3991.8,3991.7,1.4629]
[1758961095553,4.54706225,3991.8,3991.7,0.6195]
[1758961095851,4.54706225,3991.8,3991.7,1.1218]
[1758961097948,4.54706225,3991.8,3991.7,1.4629]
[1758961099744,4.99771225,3991.8,3991.7,1.4629]
[1758961099949,4.99771225,3991.8,3991.7,0.262]
[1758961100645,3.84646225,3991.8,3991.3,0.4507]
[1758961100851,0.5268,3991.3,3991.1,0.45073]
[1758961101046,1.2274,3991.2,3991.1,0.45073]
[1758961101246,1.2274,3991.2,3991.1,0.71273]
[1758961101450,0.2052,3991.0,3990.6,1.92547822]
[1758961101648,1.2274,3990.8,3990.7,1.07028]
[1758961101846,1.2274,3990.8,3990.7,1.57258]
[1758961102444,1.2274,3990.8,3990.7,1.91368]
[1758961103338,1.1605,3991.0,3990.9,1.67555]
[1758961103548,1.3619,3991.0,3990.9,3.36072822]
[1758961103951,1.1605,3991.0,3990.9,3.36072822]
[1758961104751,0.6642,3991.0,3990.9,3.36072822]
[1758961105449,1.1605,3991.0,3990.9,3.36072822]
[1758961106255,1.3619,3991.0,3990.9,2.90997822]
[1758961106553,1.3619,3991.0,3990.9,2.38607822]
[1758961106855,1.3619,3991.0,3990.9,2.90997822]
[1758961107153,1.3619,3991.0,3990.9,3.36072822]
[1758961107349,1.1605,3991.0,3990.9,3.36072822]
[1758961107554,0.2052,3991.5,3990.9,3.36072822]
[1758961107555,0.3305,3991.5,3991.4,1.2248]
[1758961107854,0.93789966,3991.5,3991.4,3.36067822]
[1758961108553,0.44159966,3991.5,3991.4,3.36067822]
[1758961109950,0.44159966,3991.5,3991.4,2.90997822]
[1758961110552,1.92368966,3991.5,3991.4,1.4868]
[1758961110751,1.92368966,3991.5,3991.4,0.6156]
[1758961111158,1.47299966,3991.5,3991.4,0.6156]
[1758961111349,0.45071,3991.3,3991.2,0.5239]
[1758961111550,1.72230966,3991.3,3991.2,0.261]
[1758961112358,1.27159966,3991.3,3991.2,1.58922]
[1758961112559,1.27159966,3991.3,3991.2,1.93652]
[1758961113951,1.27159966,3991.3,3991.2,1.4858]
[1758961114849,1.27159966,3991.3,3991.2,1.2248]
[1758961115049,1.27159966,3991.3,3991.2,1.4858]
[1758961115549,1.72230966,3991.3,3991.2,0.261]
[1758961116657,1.27159966,3991.3,3991.2,0.6146]
[1758961116958,0.11109966,3991.3,3991.2,1.4858]
[1758961117158,0.11109966,3991.3,3991.2,1.93652]
[1758961117459,3.2078,3991.8,3991.6,0.45068]
[1758961117760,1.02420794,3991.7,3991.6,2.57475822]
[1758961117960,1.02420794,3991.7,3991.6,3.35965822]
[1758961120160,0.69370794,3991.7,3991.6,3.35965822]
[1758961120362,1.02420794,3991.7,3991.6,2.90897822]
[1758961121967,1.52050794,3991.7,3991.6,2.90897822]
[1758961122454,1.02420794,3991.7,3991.6,2.90897822]
[1758961122651,0.69370794,3991.7,3991.6,2.90897822]
[1758961122854,0.11125427,3991.7,3991.6,2.90897822]
[1758961123055,0.11125427,3991.7,3991.6,7.90897822]
[1758961125167,1.16338724,3992.4,3992.3,0.7009]
[1758961125466,1.85745972,3992.4,3992.3,1.4858]
[1758961125969,1.36115972,3992.4,3992.3,1.4858]
[1758961126368,1.85745972,3992.4,3992.3,1.4858]
[1758961127864,1.85745972,3992.4,3992.3,1.2248]
[1758961128061,1.85745972,3992.4,3992.3,1.4858]
[1758961128257,1.27471254,3992.4,3992.3,1.4858]
[1758961129373,1.27471254,3992.4,3992.3,1.9364]
[1758961130470,0.11421254,3992.4,3992.3,1.9364]
[1758961132262,0.2014,3994.0,3993.9,0.45042]
[1758961132469,0.3305,3994.3,3993.9,40.75917822]
[1758961132665,0.3305,3994.3,3994.2,5.08135822]
[1758961132869,1.0796,3994.5,3994.4,0.45036]
[1758961133071,1.0796,3994.5,3994.4,0.71136]
[1758961133377,1.08194499,3994.5,3994.4,0.71331597]
[1758961133572,1.43054499,3994.5,3994.4,0.71331597]
[1758961133874,1.08194499,3994.5,3994.4,0.71331597]
[1758961134074,0.72534499,3994.5,3994.4,0.71331597]
[1758961134578,0.62727312,3994.5,3994.4,5.71331597]
[1758961136969,0.62727312,3994.5,3994.4,44.77731597]
[1758961137373,0.62727312,3994.5,3994.4,5.45231597]
[1758961137573,0.62727312,3994.5,3994.4,44.77631597]
[1758961140485,0.62727312,3994.5,3994.4,5.45231597]
[1758961140783,0.62727312,3994.5,3994.4,44.77131597]
[1758961145091,1.33247312,3994.5,3994.4,39.05495597]
[1758961145387,6.33247312,3994.5,3994.4,39.05495597]
[1758961145591,6.33247312,3994.5,3994.4,0.26295597]
[1758961146587,6.33247312,3994.5,3994.4,1.14243652]
[1758961146783,6.33247312,3994.5,3994.4,1.40343652]
[1758961149696,6.33247312,3994.5,3994.4,1.14243652]
[1758961149994,6.33247312,3994.5,3994.4,1.40243652]
[1758961150893,6.33247312,3994.5,3994.4,1.14243652]
[1758961151087,6.33247312,3994.5,3994.4,1.40243652]
[1758961151691,6.33247312,3994.5,3994.4,0.26195597]
[1758961151992,1.2348,3993.9,3993.8,3.2078]
[1758961152197,1.2348,3993.9,3993.8,4.60828055]
[1758961152697,1.2348,3993.9,3993.8,4.34828055]
[1758961152897,1.2348,3993.9,3993.8,4.61095806]
[1758961154099,0.5452,3993.9,3993.8,4.61095806]
[1758961154598,0.8831,3993.9,3993.8,4.61095806]
[1758961155196,0.5452,3993.9,3993.8,4.61095806]
[1758961161107,0.5452,3993.9,3993.8,43.66295806]
[1758961161698,0.5452,3993.9,3993.8,44.11338806]
[1758961166410,1.2438,3993.9,3993.8,3.66090751]
[1758961166617,1.2438,3993.9,3993.8,42.97290751]
[1758961166910,6.2438,3993.9,3993.8,3.21047751]
[1758961167115,1.2438,3993.9,3993.8,5.06138806]
[1758961167805,0.8831,3993.9,3993.8,5.06138806]
[1758961168011,0.5452,3993.9,3993.8,5.06138806]
[1758961171311,0.207,3994.0,3993.8,5.06138806]
[1758961173417,0.7277,3994.0,3993.8,5.06138806]
[1758961173611,0.207,3994.0,3993.8,5.06138806]
[1758961173810,0.5207,3993.9,3993.8,5.06138806]
[1758961175218,0.5207,3993.9,3993.8,6.85776265]
[1758961179818,0.207,3994.0,3993.9,0.45042]
[1758961180020,0.207,3994.0,3993.9,2.24933272]
[1758961180220,0.7277,3994.0,3993.9,2.24933272]
[1758961180416,0.207,3994.0,3993.9,2.24933272]
[1758961180617,0.5207,3994.2,3994.1,0.45039]
[1758961180921,0.5207,3994.2,3994.1,1.85087055]
[1758961182715,0.922,3995.0,3994.9,0.496]
[1758961183027,0.2014,3995.0,3994.9,45.3680611]
[1758961183212,0.7221,3995.0,3994.9,45.3394611]
[1758961183617,0.7245313,3995.0,3994.9,45.3394611]
[1758961183814,1.4451313,3995.0,3994.9,3.2078]
[1758961184023,1.4451313,3995.0,3994.9,43.65728055]
[1758961184219,6.4451313,3995.0,3994.9,4.34828055]
[1758961184420,6.54003206,3995.0,3994.9,3.4678]
[1758961184926,1.2413,3994.6,3994.5,3.2078]
[1758961185221,1.2413,3994.6,3994.5,3.4678]
[1758961185421,6.2413,3994.6,3994.5,3.4678]
[1758961186422,6.2413,3994.6,3994.5,3.2078]
[1758961186623,6.2413,3994.6,3994.5,3.4678]
[1758961191637,0.8806,3994.9,3994.8,0.6896]
[1758961191933,1.2413,3994.9,3994.8,1.4517]
[1758961192739,0.3599,3994.9,3994.8,1.4517]
[1758961192928,0.0024313,3995.0,3994.9,1.6378]
[1758961193237,0.3466313,3995.0,3994.9,1.6378]
[1758961194127,0.8404313,3995.0,3994.9,1.6378]
[1758961195529,0.8404313,3995.0,3994.9,4.8456]
[1758961196935,0.8404313,3995.0,3994.9,4.3953]
[1758961196936,1.1747313,3995.0,3994.9,4.3953]
[1758961197137,1.1747313,3995.0,3994.9,4.6553]
[1758961197734,1.3769313,3995.0,3994.9,4.1609]
[1758961197931,1.3769313,3995.0,3994.9,4.70868055]
[1758961198131,1.3769313,3995.0,3994.9,4.60828055]
[1758961198329,1.3769313,3995.0,3994.9,4.34828055]
[1758961198525,1.3769313,3995.0,3994.9,4.96768055]
[1758961198733,1.3769313,3995.0,3994.9,5.46208055]
[1758961199232,0.0024313,3995.0,3994.9,5.79478055]
[1758961199934,0.0024313,3995.0,3994.9,6.24508055]
[1758961200445,1.3769313,3995.0,3994.9,6.24508055]
[1758961202042,1.1747313,3995.0,3994.9,5.98608055]
[1758961202336,1.1747313,3995.0,3994.9,6.24508055]
[1758961203040,0.0024313,3995.0,3994.9,6.24508055]
[1758961204941,0.3466313,3995.0,3994.9,6.24508055]
[1758961205332,1.47258083,3995.0,3994.6,0.4944]
[1758961205540,1.1723,3994.7,3994.6,1.14048055]
[1758961205841,1.62266,3994.4,3994.1,4.34828055]